fUST/lending_fUST_20241205
["ID","MTS","AMOUNT","RATE_DAILY","PERIOD"]
[344337233,1733352638406,-1526.3,0.00026027,7]
[344337235,1733352638415,-1080.89,0.00026027,7]
[344337236,1733352638427,-500.0,0.00026027,7]
[344337237,1733352638436,-506.82,0.00026027,7]
[344337238,1733352638446,-178.68278393,0.00026027,7]
[344337239,1733352638455,-500.0,0.00026027,7]
[344337240,1733352638465,-10893.0,0.00026027,7]
[344337241,1733352638476,-500.0,0.00026027,7]
[344337242,1733352638488,-151.0,0.000261,20]
[344337243,1733352638498,-151.0,0.000261,11]
[344337244,1733352638507,-150.0,0.00026191,2]
[344337245,1733352638518,-532.0,0.00026191,2]
[344337246,1733352638527,-2170.0,0.00026191,2]
[344337247,1733352638536,-2375.0,0.00026191,2]
[344337248,1733352638546,-200.588,0.00026191,2]
[344337249,1733352638556,-150.953,0.00026191,2]
[344337250,1733352638566,-9158.36743826,0.000262,2]
[344337251,1733352638575,-3014.85516827,0.000262,2]
[344337252,1733352638585,-3014.85516827,0.000262,2]
[344337253,1733352638594,-3014.85516827,0.000262,2]
[344337254,1733352638604,-3014.85516827,0.000262,2]
[344337255,1733352638614,-2289.59185958,0.000262,2]
[344337256,1733352638623,-2289.59185956,0.000262,2]
[344337257,1733352638632,-2289.59185956,0.000262,2]
[344337258,1733352638642,-151.0,0.000262,19]
[344337259,1733352638652,-2289.59185956,0.000262,2]
[344337260,1733352638662,-300.224466,0.000262,20]
[344337261,1733352638672,-151.0,0.000262,12]
[344337262,1733352638682,-1500.0,0.00026222,2]
[344337263,1733352638692,-218.7,0.00026227,4]
[344337264,1733352638701,-1343.02371489,0.00026299,2]
[344337265,1733352638711,-151.0,0.000263,12]
[344337266,1733352638720,-444.53664038,0.000263,2]
[344337267,1733352638730,-500.0,0.00026301,7]
[344337268,1733352638739,-437.71885857,0.00026301,7]
[344337269,1733352638748,-566.68,0.00026301,7]
[344337270,1733352638758,-500.0,0.00026301,7]
[344337271,1733352638767,-644.83097312,0.00026301,7]
[344337272,1733352638777,-500.0,0.00026301,7]
[344337273,1733352638787,-500.0,0.00026301,7]
[344337274,1733352638797,-500.0,0.00026301,7]
[344337275,1733352638806,-966.88,0.00026301,7]
[344337276,1733352638815,-500.0,0.00026301,7]
[344337277,1733352638825,-527.95,0.00026301,7]
[344337278,1733352638834,-500.0,0.00026301,7]
[344337279,1733352638844,-500.0,0.00026301,7]
[344337280,1733352638853,-672.62,0.00026301,7]
[344337281,1733352638862,-500.0,0.00026301,7]
[344337282,1733352638872,-574.01,0.00026301,7]
[344337283,1733352638882,-500.0,0.00026301,7]
[344337284,1733352638891,-4270.46,0.00026301,7]
[344337285,1733352638900,-2269.79,0.00026301,7]
[344337286,1733352638910,-500.0,0.00026301,7]
[344337287,1733352638919,-800.81,0.00026301,7]
[344337288,1733352638931,-1767.39,0.00026301,7]
[344337289,1733352638941,-500.0,0.00026301,7]
[344337290,1733352638951,-607.5,0.00026301,7]
[344337291,1733352638961,-1534.08,0.00026301,7]
[344337292,1733352638971,-500.0,0.00026301,7]
[344337293,1733352638980,-500.0,0.00026301,7]
[344337294,1733352638990,-755.49,0.00026301,7]
[344337295,1733352639000,-1210.56,0.00026301,7]
[344337296,1733352639010,-552.92,0.00026301,7]
[344337298,1733352639021,-547.48,0.00026301,7]
[344337300,1733352639030,-500.0,0.00026301,7]
[344337302,1733352639040,-508.64,0.00026301,7]
[344337304,1733352639049,-500.0,0.00026301,7]
[344337305,1733352639059,-1704.86,0.00026301,7]
[344337307,1733352639069,-1835.20753665,0.00026301,2]
[344337319,1733352639187,-611.98,0.00026301,7]
[344337321,1733352639200,-2704.62,0.00026301,7]
[344337323,1733352639210,-548.27,0.00026301,7]
[344337325,1733352639220,-832.24,0.00026301,7]
[344337326,1733352639230,-1327.71,0.00026301,7]
[344337327,1733352639240,-725.54,0.00026301,7]
[344337328,1733352639250,-666.44,0.00026301,7]
[344337329,1733352639259,-500.0,0.00026301,7]
[344337330,1733352639269,-1526.3,0.00026301,7]
[344337331,1733352639280,-1080.89,0.00026301,7]
[344337332,1733352639289,-500.0,0.00026301,7]
[344337333,1733352639299,-506.82,0.00026301,7]
[344337334,1733352639308,-500.0,0.00026301,7]
[344337335,1733352639318,-10893.0,0.00026301,7]
[344337336,1733352639327,-501.3,0.00026301,7]
[344337337,1733352639337,-500.0,0.00026373,2]
[344337338,1733352639347,-529.85867618,0.00026373,2]
[344337339,1733352639356,-500.0,0.00026373,2]
[344337340,1733352639366,-500.58436627,0.00026373,2]
[344337341,1733352639375,-500.95874668,0.00026373,2]
[344337342,1733352639384,-500.0,0.00026373,2]
[344337343,1733352639394,-500.7194988,0.00026373,2]
[344337344,1733352639403,-583.80471642,0.00026373,2]
[344337345,1733352639412,-150.01,0.00026399,2]
[344337346,1733352639423,-12245.16884184,0.00026399,2]
[344337347,1733352639435,-160.0,0.00026399,2]
[344337348,1733352639444,-11234.35986071,0.000264,2]
[344337349,1733352639455,-3476.04997846,0.000264,7]
[344337363,1733352639591,-500.0,0.00024652,2]
[344337365,1733352639600,-500.0,0.00024652,2]
[344337367,1733352639610,-500.0,0.00024652,2]
[344337369,1733352639620,-500.0,0.00024652,2]
[344337371,1733352639629,-322.14999999,0.00024652,2]
[344337373,1733352639642,-177.85000001,0.00024652,2]
[344337375,1733352639653,-500.0,0.00024652,2]
[344337378,1733352639663,-522.94999999,0.000264,7]
[344337416,1733352640055,-500.0,0.00024652,2]
[344337418,1733352640068,-500.0,0.00024652,2]
[344337420,1733352640080,-500.0,0.00024652,2]
[344337422,1733352640094,-500.0,0.00024652,2]
[344337424,1733352640106,-500.0,0.00024652,2]
[344337426,1733352640118,-500.0,0.00024652,2]
[344337428,1733352640131,-500.0,0.00024652,2]
[344337430,1733352640144,-500.0,0.00024652,2]
[344337432,1733352640156,-500.0,0.00024652,2]
[344337435,1733352640167,-500.0,0.00024652,2]
[344337436,1733352640182,-245.74585515,0.00024652,2]
[344337439,1733352640197,-584.22262782,0.00024652,2]
[344337441,1733352640208,-500.0,0.00024652,2]
[344337443,1733352640219,-560.90992702,0.00024652,2]
[344337445,1733352640231,-500.0,0.00024652,2]
[344337447,1733352640243,-500.0,0.00024652,2]
[344337449,1733352640253,-500.0,0.00024652,2]
[344337451,1733352640264,-500.0,0.00024652,2]
[344337452,1733352640274,-500.0,0.00024652,2]
[344337454,1733352640285,-500.0,0.00024652,2]
[344337456,1733352640296,-500.0,0.00024652,2]
[344337458,1733352640307,-500.0,0.00024652,2]
[344337460,1733352640318,-500.0,0.00024652,2]
[344337462,1733352640328,-500.0,0.00024652,2]
[344337464,1733352640338,-500.0,0.00024652,2]
[344337466,1733352640348,-500.0,0.00024652,2]
[344337469,1733352640364,-500.0,0.00024652,2]
[344337471,1733352640379,-500.0,0.00024652,2]
[344337473,1733352640394,-500.0,0.00024652,2]
[344337476,1733352640408,-500.0,0.00024652,2]
[344337478,1733352640422,-500.0,0.00024652,2]
[344337481,1733352640445,-500.0,0.00024652,2]
[344337483,1733352640459,-500.0,0.00024652,2]
[344337485,1733352640475,-491.92665357,0.00024652,2]
[344337488,1733352640492,-500.0,0.00024652,2]
[344337491,1733352640506,-500.0,0.00024657,7]
[344337494,1733352640539,-500.0,0.00024931,7]
[344337497,1733352640558,-20200.19493638,0.000264,7]
[344337500,1733352640579,-394353.98315155,0.000264,7]
[344337502,1733352640595,-902.3,0.000264,14]
[344337505,1733352640611,-151.0,0.000264,7]
[344337507,1733352640626,-272.089939,0.000264,7]
[344337508,1733352640641,-272.089939,0.000264,7]
[344337510,1733352640655,-10652.93,0.000264,2]
[344337513,1733352640667,-178.716801,0.000264,7]
[344337515,1733352640690,-178.716801,0.000264,7]
[344337518,1733352640706,-1291746.73523193,0.000264,7]
[344337521,1733352640725,-286.474,0.000264,7]
[344337564,1733352641162,2000.0,0.00027,30]
[344337770,1733352644689,-500.0,0.00024657,7]
[344337773,1733352644705,-500.0,0.00024931,7]
[344337775,1733352644719,-99.27436958,0.00025205,7]
[344337778,1733352644735,-400.72563042,0.00025205,7]
[344337780,1733352644746,-500.0,0.00025479,7]
[344337782,1733352644759,-500.0,0.00025753,7]
[344337784,1733352644772,-500.0,0.00026027,7]
[344337787,1733352644785,-500.0,0.00026301,7]
[344337789,1733352644798,-41608.33396616,0.000264,7]
[344337791,1733352644812,-54223.9365623,0.000264,7]
[344337794,1733352644826,-5751.4586211,0.000264,7]
[344337796,1733352644840,-9909.49612238,0.000264,7]
[344337799,1733352644859,-31098.15407436,0.000264,7]
[344337800,1733352644875,-5872.86941435,0.000264,7]
[344337801,1733352644941,-183514.63302693,0.000264,7]
[344337865,1733352646608,-13689.69689892,0.000264,7]
[344337867,1733352646623,-941316.46470262,0.000264,7]
[344337868,1733352775824,185.158152,0.00013973,2]
[344337870,1733353449634,191.859888,0.00013973,2]
[344337871,1733353492118,-191.859888,0.00020447,2]
[344337872,1733353492143,-179.0,0.00022,2]
[344337873,1733353492172,-170.0,0.00022,2]
[344337874,1733353492197,-179.0,0.00022192,2]
[344337875,1733353492220,-182.45836566,0.0002268,2]
[344337876,1733353492244,-179.0,0.00023014,2]
[344337877,1733353492267,-170.0,0.00023014,2]
[344337878,1733353492290,-219.4714517,0.00023085,2]
[344337879,1733353492313,-229.4322338,0.00023191,2]
[344337880,1733353492337,-177.695563,0.00023562,2]
[344337881,1733353492359,-169.884775,0.00023712,2]
[344337882,1733353492382,-300.0,0.00023724,2]
[344337883,1733353492405,-24900.0,0.00023725,2]
[344337884,1733353492433,-156.37291828,0.00023814,2]
[344337885,1733353492455,-173.0,0.00024164,2]
[344337886,1733353492477,-183.0,0.00024164,2]
[344337887,1733353492500,-500.0,0.00024653,2]
[344337888,1733353492523,-500.0,0.00024653,2]
[344337889,1733353492547,-500.0,0.00024653,2]
[344337890,1733353492572,-500.0,0.00024653,2]
[344337891,1733353492595,-500.0,0.00024653,2]
[344337892,1733353492617,-320.15338407,0.00024653,2]
[344337893,1733353492642,-500.0,0.00024653,2]
[344337894,1733353492676,-500.0,0.00024653,2]
[344337895,1733353492698,-169.69427356,0.00024653,2]
[344337896,1733353492721,-500.0,0.00024653,2]
[344337897,1733353492746,-223.45962875,0.00024653,2]
[344337898,1733353492772,-500.0,0.00024653,2]
[344337899,1733353492796,-500.0,0.00024653,2]
[344337900,1733353492823,-500.0,0.00024653,2]
[344337901,1733353492849,-500.0,0.00024653,2]
[344337902,1733353492872,-500.0,0.00024653,2]
[344337903,1733353492896,-500.0,0.00024653,2]
[344337904,1733353492923,-500.0,0.00024653,2]
[344337905,1733353492950,-500.0,0.00024653,2]
[344337906,1733353492974,-500.0,0.00024653,2]
[344337907,1733353492998,-500.0,0.00024653,2]
[344337908,1733353493023,-500.0,0.00024653,2]
[344337909,1733353493049,-500.0,0.00024653,2]
[344337910,1733353493074,-500.0,0.00024653,2]
[344337911,1733353493099,-500.0,0.00024653,2]
[344337912,1733353493125,-500.0,0.00024653,2]
[344337913,1733353493150,-500.0,0.00024653,2]
[344337914,1733353493177,-500.0,0.00024653,2]
[344337915,1733353493201,-500.0,0.00024653,2]
[344337916,1733353493229,-500.0,0.00024653,2]
[344337917,1733353493256,-500.0,0.00024653,2]
[344337918,1733353493284,-500.0,0.00024653,2]
[344337919,1733353493309,-291.04813204,0.00024653,2]
[344337920,1733353493335,-500.0,0.00024653,2]
[344337921,1733353493362,-500.0,0.00024653,2]
[344337922,1733353493388,-500.0,0.00024653,2]
[344337923,1733353493416,-500.0,0.00024653,2]
[344337924,1733353493441,-500.0,0.00024653,2]
[344337925,1733353493465,-500.0,0.00024653,2]
[344337926,1733353493490,-500.0,0.00024653,2]
[344337927,1733353493515,-500.0,0.00024653,2]
[344337928,1733353493542,-500.0,0.00024653,2]
[344337929,1733353493568,-500.0,0.00024653,2]
[344337930,1733353493594,-500.0,0.00024653,2]
[344337931,1733353493621,-500.0,0.00024653,2]
[344337932,1733353493647,-500.0,0.00024653,2]
[344337933,1733353493679,-500.0,0.00024653,2]
[344337934,1733353493706,-500.0,0.00024653,2]
[344337935,1733353493732,-500.0,0.00024653,2]
[344337936,1733353493757,-500.0,0.00024653,2]
[344337937,1733353493787,-500.0,0.00024653,2]
[344337938,1733353493822,-500.0,0.00024653,2]
[344337939,1733353493848,-400.0,0.00024653,2]
[344337940,1733353493875,-500.0,0.00024653,2]
[344337941,1733353493900,-500.0,0.00024653,2]
[344337942,1733353493934,-500.0,0.00024653,2]
[344337943,1733353493958,-500.0,0.00024653,2]
[344337944,1733353494100,-500.0,0.00024653,2]
[344337945,1733353494129,-500.0,0.00024653,2]
[344337946,1733353494160,-500.0,0.00024653,2]
[344337947,1733353494186,-500.0,0.00024653,2]
[344337948,1733353494212,-500.0,0.00024653,2]
[344337949,1733353494237,-500.0,0.00024653,2]
[344337950,1733353494263,-500.0,0.00024653,2]
[344337951,1733353494288,-500.0,0.00024653,2]
[344337952,1733353494315,-500.0,0.00024653,2]
[344337953,1733353494341,-500.0,0.00024653,2]
[344337954,1733353494367,-519.43318831,0.00024653,2]
[344337955,1733353494393,-500.0,0.00024653,2]
[344337956,1733353494424,-500.0,0.00024653,2]
[344337957,1733353494451,-500.0,0.00024653,2]
[344337958,1733353494476,-500.0,0.00024653,2]
[344337959,1733353494503,-500.0,0.00024653,2]
[344337960,1733353494528,-500.0,0.00024653,2]
[344337961,1733353494553,-500.0,0.00024653,2]
[344337962,1733353494579,-500.0,0.00024653,2]
[344337963,1733353494603,-500.0,0.00024653,2]
[344337964,1733353494628,-500.0,0.00024653,2]
[344337965,1733353494656,-500.0,0.00024653,2]
[344337966,1733353494688,-500.0,0.00024653,2]
[344337967,1733353494715,-500.0,0.00024653,2]
[344337968,1733353494747,-500.0,0.00024653,2]
[344337969,1733353494774,-500.0,0.00024653,2]
[344337970,1733353494799,-500.0,0.00024653,2]
[344337971,1733353494828,-500.0,0.00024653,2]
[344337972,1733353494853,-500.0,0.00024653,2]
[344337973,1733353494880,-500.0,0.00024653,2]
[344337974,1733353494907,-500.0,0.00024653,2]
[344337975,1733353494934,-500.0,0.00024653,2]
[344337976,1733353494959,-500.0,0.00024653,2]
[344337977,1733353494986,-500.0,0.00024653,2]
[344337978,1733353495011,-500.0,0.00024653,2]
[344337979,1733353495036,-500.0,0.00024653,2]
[344337980,1733353495062,-500.0,0.00024653,2]
[344337981,1733353495087,-313.78292622,0.00024653,2]
[344337982,1733353495115,-500.0,0.00024653,2]
[344337983,1733353495139,-500.0,0.00024657,7]
[344337984,1733353495168,-500.0,0.00024657,7]
[344337985,1733353495194,-361.54110916,0.00024657,7]
[344337986,1733353495219,-500.0,0.00024657,7]
[344337987,1733353495244,-780.11,0.00024657,7]
[344337988,1733353495268,-500.0,0.00024657,7]
[344337989,1733353495292,-500.0,0.00024657,7]
[344337990,1733353495316,-500.0,0.00024657,7]
[344337991,1733353495339,-500.0,0.00024657,7]
[344337992,1733353495363,-500.0,0.00024657,7]
[344337993,1733353495386,-381.86,0.00024657,7]
[344337994,1733353495412,-500.0,0.00024657,7]
[344337995,1733353495435,-500.0,0.00024657,7]
[344337996,1733353495458,-500.0,0.00024657,7]
[344337997,1733353495481,-500.0,0.00024657,7]
[344337998,1733353495503,-500.0,0.00024657,7]
[344337999,1733353495526,-500.0,0.00024657,7]
[344338000,1733353495549,-500.0,0.00024657,2]
[344338001,1733353495573,-500.0,0.00024657,7]
[344338002,1733353495595,-578.93,0.00024657,7]
[344338003,1733353495618,-598.94,0.00024657,7]
[344338004,1733353495640,-500.0,0.00024657,7]
[344338005,1733353495666,-500.0,0.00024657,7]
[344338006,1733353495688,-500.0,0.00024657,7]
[344338007,1733353495710,-500.0,0.00024657,7]
[344338008,1733353495735,-500.0,0.00024657,7]
[344338009,1733353495757,-500.0,0.00024657,7]
[344338010,1733353495780,-500.0,0.00024657,7]
[344338011,1733353495805,-686.27,0.00024657,7]
[344338012,1733353495829,-376.56682792,0.00024657,7]
[344338013,1733353495852,-500.0,0.00024657,7]
[344338014,1733353495874,-500.0,0.00024657,7]
[344338015,1733353495897,-500.0,0.00024657,7]
[344338016,1733353495925,-500.0,0.00024657,7]
[344338017,1733353495956,-500.0,0.00024657,7]
[344338018,1733353495980,-500.0,0.00024657,7]
[344338019,1733353496005,-500.0,0.00024657,2]
[344338020,1733353496028,-500.0,0.00024657,7]
[344338021,1733353496051,-532.82073878,0.00024657,7]
[344338022,1733353496074,-500.0,0.00024657,7]
[344338023,1733353496097,-500.0,0.00024657,7]
[344338024,1733353496121,-1464.87,0.00024657,7]
[344338025,1733353496144,-500.0,0.00024657,7]
[344338026,1733353496172,-500.0,0.00024657,7]
[344338027,1733353496195,-500.0,0.00024657,7]
[344338028,1733353496219,-500.0,0.00024657,7]
[344338029,1733353496242,-520.56,0.00024657,7]
[344338030,1733353496268,-719.78459575,0.00024657,7]
[344338031,1733353694194,52028.7028662,0.00027,30]
[344338032,1733353771441,223671.64855815,0.00027,30]
[344338043,1733353832878,-1521.71321941,0.00020247,2]
[344338044,1733353832889,-314.56573263,0.00020347,2]
[344338045,1733353832899,-2000.0,0.000205,2]
[344338046,1733353832910,-2000.0,0.00021588,2]
[344338047,1733353832922,-177.33691,0.00023562,2]
[344338048,1733353832932,-267.546676,0.00023657,2]
[344338049,1733353832942,-2000.0,0.000237,2]
[344338050,1733353832952,-300.0,0.00023798,2]
[344338051,1733353832962,-300.0,0.00023798,2]
[344338053,1733353832972,-24900.0,0.00023799,2]
[344338055,1733353832982,-402.75,0.0002443,3]
[344338057,1733353832992,-201.38,0.0002443,3]
[344338059,1733353833002,-604.16,0.0002443,3]
[344338060,1733353833013,-1000.13383267,0.00024439,2]
[344338062,1733353833024,-119398.67982786,0.0002444,8]
[344338064,1733353833035,-172.453297,0.00024444,2]
[344338066,1733353833046,-7152.63316655,0.00024556,2]
[344338068,1733353833058,-1643.10307254,0.00024556,2]
[344338070,1733353833070,-1897.60098254,0.00024557,2]
[344338072,1733353833081,-500.0,0.00024599,2]
[344338074,1733353833095,-301.34058498,0.00024599,2]
[344338076,1733353833109,-316.39619927,0.00024599,2]
[344338078,1733353833119,-274.37292567,0.00024599,2]
[344338080,1733353833130,-563.22919528,0.00024599,2]
[344338082,1733353833140,-500.0,0.00024599,2]
[344338084,1733353833151,-500.0,0.00024599,2]
[344338086,1733353833162,-500.0,0.00024599,2]
[344338087,1733353833173,-631.04813203,0.00024599,2]
[344338089,1733353833185,-500.0,0.00024599,2]
[344338090,1733353833195,-500.0,0.00024599,2]
[344338092,1733353833207,-500.0,0.00024599,2]
[344338093,1733353833218,-500.0,0.00024599,2]
[344338095,1733353833228,-500.0,0.00024599,2]
[344338096,1733353833238,-500.0,0.00024599,2]
[344338098,1733353833249,-500.0,0.00024599,2]
[344338100,1733353833259,-500.0,0.00024599,2]
[344338101,1733353833271,-221.37829262,0.00024599,2]
[344338103,1733353833282,-289.00936466,0.00024599,2]
[344338104,1733353833292,-500.0,0.00024599,2]
[344338106,1733353833302,-585.64044279,0.00024599,2]
[344338107,1733353833312,-200.0,0.00024599,2]
[344338109,1733353833322,-500.0,0.00024599,2]
[344338110,1733353833332,-500.0,0.00024599,2]
[344338112,1733353833346,-500.0,0.00024599,2]
[344338114,1733353833357,-500.0,0.00024599,2]
[344338115,1733353833368,-356.8139681,0.00024599,2]
[344338117,1733353833378,-621.44513197,0.00024599,2]
[344338119,1733353833388,-160.0,0.00024599,2]
[344338120,1733353833399,-280185.26904553,0.000246,7]
[344338122,1733353833412,-135401.89646931,0.000246,7]
[344338123,1733353834849,-144799.03558,0.000246,7]
[344338124,1733353834866,-491.255,0.000246,7]
[344338139,1733353838788,-268.95,0.000246,7]
[344338141,1733353838800,-421.55,0.000246,7]
[344338142,1733353838868,-2560317.83390516,0.000246,7]
[344338143,1733353838878,-1169.27083333,0.000246,7]
[344338144,1733353838890,-1169.27083333,0.000246,7]
[344338145,1733353838900,-1169.27083333,0.000246,7]
[344338146,1733353838910,-151.0,0.000246,5]
[344338147,1733353838923,-151.0,0.000246,6]
[344338148,1733353838933,-181.01608879,0.00024656,2]
[344338149,1733353838942,-500.0,0.00024657,7]
[344338150,1733353838952,-500.0,0.00024657,7]
[344338151,1733353838962,-500.0,0.00024657,7]
[344338152,1733353838971,-500.0,0.00024657,2]
[344338153,1733353838981,-500.0,0.00024657,7]
[344338154,1733353838991,-500.0,0.00024657,7]
[344338155,1733353839000,-500.0,0.00024657,7]
[344338157,1733353839011,-500.0,0.00024657,7]
[344338159,1733353839021,-246.62643671,0.00024657,7]
[344338161,1733353839030,-500.0,0.00024657,7]
[344338163,1733353839040,-500.0,0.00024657,7]
[344338164,1733353839050,-500.0,0.00024657,7]
[344338165,1733353839060,-1000.0,0.00024657,10]
[344338166,1733353839070,-500.0,0.00024657,7]
[344338167,1733353839079,-500.0,0.00024657,7]
[344338168,1733353839089,-297.04726372,0.00024657,7]
[344338169,1733353839099,-500.0,0.00024657,7]
[344338170,1733353839108,-500.0,0.00024657,7]
[344338171,1733353839118,-500.0,0.00024657,7]
[344338172,1733353839128,-336.0,0.00024657,7]
[344338173,1733353839138,-500.0,0.00024657,7]
[344338174,1733353839148,-500.0,0.00024657,7]
[344338175,1733353839158,-500.0,0.00024657,7]
[344338176,1733353839167,-500.0,0.00024657,7]
[344338177,1733353839177,-500.0,0.00024657,7]
[344338178,1733353839187,-500.0,0.00024657,7]
[344338179,1733353839196,-500.0,0.00024657,7]
[344338180,1733353839206,-522.4,0.00024657,7]
[344338181,1733353839216,-500.0,0.00024657,7]
[344338182,1733353839226,-500.0,0.00024657,7]
[344338183,1733353839235,-500.0,0.00024657,7]
[344338184,1733353839246,-500.0,0.00024657,7]
[344338185,1733353839256,-500.0,0.00024657,7]
[344338186,1733353839266,-500.0,0.00024657,7]
[344338187,1733353839276,-500.0,0.00024657,7]
[344338188,1733353839285,-500.0,0.00024657,7]
[344338189,1733353839295,-500.0,0.00024657,7]
[344338190,1733353839306,-500.0,0.00024657,7]
[344338191,1733353839318,-500.0,0.00024657,7]
[344338192,1733353839327,-500.0,0.00024657,7]
[344338193,1733353839337,-500.0,0.00024657,7]
[344338194,1733353839350,-500.0,0.00024657,7]
[344338195,1733353839361,-500.0,0.00024657,7]
[344338196,1733353839371,-1380.4,0.00024657,7]
[344338197,1733353839381,-613.7,0.00024657,7]
[344338198,1733353839391,-500.0,0.00024657,7]
[344338199,1733353839401,-500.0,0.00024657,7]
[344338200,1733353839410,-500.0,0.00024657,7]
[344338201,1733353839420,-500.0,0.00024657,7]
[344338202,1733353839429,-500.0,0.00024657,7]
[344338203,1733353839439,-500.0,0.00024657,7]
[344338204,1733353839449,-625.34,0.00024657,7]
[344338205,1733353839458,-500.0,0.00024657,7]
[344338206,1733353839469,-500.0,0.00024657,7]
[344338207,1733353839478,-500.0,0.00024657,7]
[344338208,1733353839488,-500.0,0.00024657,7]
[344338209,1733353839498,-1029.31,0.00024657,7]
[344338210,1733353839508,-500.0,0.00024657,7]
[344338211,1733353839518,-535.46484069,0.00024657,7]
[344338212,1733353839529,-500.0,0.00024657,7]
[344338213,1733353839539,-500.0,0.00024657,7]
[344338214,1733353839548,-500.0,0.00024657,7]
[344338215,1733353839558,-500.0,0.00024657,7]
[344338216,1733353839567,-500.0,0.00024657,7]
[344338217,1733353839577,-500.0,0.00024657,7]
[344338218,1733353839586,-1041.79,0.00024657,7]
[344338219,1733353839595,-807.75,0.00024657,7]
[344338220,1733353839607,-500.0,0.00024657,7]
[344338221,1733353839616,-500.0,0.00024657,7]
[344338222,1733353839625,-500.0,0.00024657,7]
[344338223,1733353839635,-500.0,0.00024657,7]
[344338224,1733353839644,-500.0,0.00024657,7]
[344338225,1733353839654,-500.0,0.00024657,7]
[344338226,1733353839663,-500.0,0.00024657,7]
[344338227,1733353839673,-500.0,0.00024657,7]
[344338228,1733353839682,-500.0,0.00024657,7]
[344338229,1733353839691,-500.0,0.00024657,7]
[344338230,1733353839701,-500.0,0.00024657,7]
[344338231,1733353839710,-714.06,0.00024657,7]
[344338232,1733353839720,-500.0,0.00024657,7]
[344338233,1733353839730,-281.19062811,0.00024657,2]
[344338234,1733353839739,-500.0,0.00024657,7]
[344338235,1733353839749,-500.0,0.00024657,7]
[344338236,1733353839759,-500.0,0.00024657,7]
[344338237,1733353839768,-500.0,0.00024657,7]
[344338238,1733353839777,-500.0,0.00024657,7]
[344338239,1733353839786,-330.04237748,0.00024657,7]
[344338240,1733353839795,-12679.24,0.00024657,7]
[344338241,1733353839804,-500.0,0.00024657,7]
[344338242,1733353839814,-500.0,0.00024657,7]
[344338243,1733353839823,-402.60774985,0.00024657,7]
[344338244,1733353839832,-500.0,0.00024657,7]
[344338245,1733353839842,-500.0,0.00024657,7]
[344338246,1733353839856,-649.37849436,0.00024657,7]
[344338247,1733353839865,-500.0,0.00024657,7]
[344338248,1733353839875,-500.0,0.00024657,7]
[344338249,1733353839885,-500.0,0.00024657,7]
[344338250,1733353839894,-500.0,0.00024657,7]
[344338251,1733353839904,-500.0,0.00024657,7]
[344338252,1733353839914,-500.0,0.00024657,7]
[344338253,1733353839926,-500.0,0.00024657,7]
[344338254,1733353839936,-500.0,0.00024657,7]
[344338255,1733353839945,-513.72331971,0.00024657,7]
[344338256,1733353839954,-500.0,0.00024657,7]